bitfinex-derivatives/quotes_BTCF0:USTF0_20260113
["timestamp","ask_amount","ask_price","bid_price","bid_amount"]
[1768327313758,0.010715,93375.0,93352.0,0.09727167]
[1768327313953,0.010715,93375.0,93360.0,0.010717]
[1768327314255,0.01607087,93373.0,93357.0,0.010717]
[1768327314455,0.00016074,93372.0,93357.0,0.010717]
[1768327315154,0.010716,93371.0,93356.0,0.00016074]
[1768327315556,0.00016074,93372.0,93344.0,0.09727167]
[1768327315557,0.08954318,93367.0,93344.0,0.09727167]
[1768327315750,0.010718,93357.0,93341.0,0.010719]
[1768327316055,0.010718,93357.0,93341.0,0.060719]
[1768327316252,0.15425764,93360.0,93343.0,0.010719]
[1768327316561,0.010717,93360.0,93345.0,0.010719]
[1768327318757,0.09652,93361.0,93345.0,0.010719]
[1768327318953,0.010717,93358.0,93342.0,0.010719]
[1768327319361,0.107237,93361.0,93346.0,0.010719]
[1768327320252,0.08899088,93359.0,93335.0,0.01072]
[1768327320458,0.07827388,93359.0,93335.0,0.05]
[1768327320753,0.09652,93361.0,93333.0,1.6e-07]
[1768327320754,0.010719,93347.0,93333.0,1.6e-07]
[1768327320955,0.01072,93335.0,93321.0,0.09727167]
[1768327321156,0.010719,93346.0,93321.0,0.09727167]
[1768327321157,0.14354064,93340.0,93321.0,0.05]
[1768327321455,0.01072,93335.0,93320.0,0.010722]
[1768327321652,0.09668074,93337.0,93320.0,0.010722]
[1768327322055,0.00016074,93337.0,93310.0,0.09079728]
[1768327322257,7.4e-07,93337.0,93332.0,0.01072]
[1768327322554,0.0783908,93336.0,93308.0,0.09727167]
[1768327322752,0.010721,93327.0,93311.0,0.010723]
[1768327323149,0.07978384,93334.0,93308.0,0.09727167]
[1768327323350,0.07978384,93319.0,93291.0,0.09727167]
[1768327323550,0.010723,93314.0,93291.0,0.05]
[1768327323744,0.07978384,93316.0,93291.0,0.05]
[1768327323950,0.07978384,93316.0,93305.0,0.010723]
[1768327324147,0.09652,93318.0,93305.0,0.010723]
[1768327324352,0.09652,93318.0,93297.0,0.09079728]
[1768327324353,0.09652,93318.0,93300.0,0.09727167]
[1768327324548,0.09652,93318.0,93311.0,0.010723]
[1768327324858,0.09652,93323.0,93312.0,0.010723]
[1768327326150,0.00016074,93330.0,93316.0,0.09065568]
[1768327326364,0.00016074,93330.0,93309.0,0.18846454]
[1768327326559,0.00016074,93330.0,93309.0,0.09065568]
[1768327326755,0.010721,93324.0,93308.0,0.09652]
[1768327326955,0.08931485,93324.0,93308.0,0.09652]
[1768327327363,0.07859385,93324.0,93301.0,0.09065568]
[1768327327658,0.010721,93326.0,93301.0,0.15065568]
[1768327327854,0.010721,93327.0,93301.0,0.15065568]
[1768327328049,0.07859385,93321.0,93303.0,0.010724]
[1768327328256,0.07859385,93321.0,93305.0,0.010723]
[1768327328563,0.010722,93318.0,93299.0,0.010724]
[1768327328764,0.24006064,93320.0,93303.0,0.010724]
[1768327329058,0.24006064,93320.0,93293.0,0.07537968]
[1768327329247,0.09652,93320.0,93303.0,0.010724]
[1768327329446,0.09652,93320.0,93293.0,0.07537968]
[1768327329447,0.09265715,93319.0,93293.0,0.07537968]
[1768327329652,0.010723,93309.0,93287.0,0.00013783]
[1768327329953,0.09652,93309.0,93295.0,0.010725]
[1768327330264,0.09652,93309.0,93292.0,0.010725]
[1768327330658,0.09652,93309.0,93289.0,0.010725]
[1768327330857,0.09251082,93308.0,93287.0,0.00013783]
[1768327331158,0.010723,93307.0,93290.0,0.010725]
[1768327331466,0.010724,93305.0,93287.0,0.01086283]
[1768327332963,0.010724,93305.0,93289.0,0.010725]
[1768327333164,0.09652,93309.0,93300.0,0.010724]
[1768327333466,0.00016074,93311.0,93302.0,0.010724]
[1768327333662,0.09144038,93330.0,93308.0,0.010723]
[1768327333866,0.010721,93324.0,93308.0,0.010723]
[1768327334160,0.010722,93322.0,93305.0,0.09065568]
[1768327334567,0.010721,93326.0,93305.0,0.09065568]
[1768327334871,0.09652,93325.0,93310.0,0.10137868]
[1768327335164,0.09652,93325.0,93310.0,0.09065568]
[1768327336162,0.09652,93325.0,93311.0,0.010723]
[1768327336561,0.107241,93325.0,93311.0,0.010723]
[1768327336762,0.09652,93325.0,93310.0,0.09065568]
[1768327336961,0.09652,93325.0,93310.0,0.07765568]
[1768327337170,0.19554207,93325.0,93308.0,0.00016074]
[1768327337562,0.09652,93325.0,93308.0,0.00016074]
[1768327337763,0.107241,93325.0,93308.0,0.01088374]
[1768327338262,0.107241,93325.0,93308.0,0.00016074]
[1768327338263,0.09652,93325.0,93308.0,0.00016074]
[1768327338465,0.09652,93325.0,93311.0,0.010723]
[1768327339068,0.09652,93325.0,93313.0,0.010723]
[1768327342265,0.09652,93325.0,93310.0,0.09198591]
[1768327342467,0.09652,93325.0,93315.0,0.010722]
[1768327343277,0.09652,93325.0,93312.0,0.010723]
[1768327343672,0.09652,93325.0,93314.0,0.010722]
[1768327343867,0.00016074,93327.0,93310.0,0.09198591]
[1768327344072,0.00016074,93327.0,93320.0,0.010722]
[1768327344374,0.09652,93331.0,93318.0,0.09198591]
[1768327344770,0.09652,93331.0,93318.0,0.08898591]
[1768327344972,0.09902207,93352.0,93319.0,0.09894838]
[1768327345173,0.19554207,93351.0,93319.0,0.09894838]
[1768327345470,0.09902207,93340.0,93309.0,0.09894838]
[1768327345668,0.010721,93331.0,93316.0,0.010722]
[1768327346283,0.09902207,93338.0,93318.0,0.010722]
[1768327347277,0.010721,93327.0,93311.0,0.010723]
[1768327347479,0.09902207,93323.0,93295.0,0.07696316]
[1768327347677,0.010722,93317.0,93295.0,0.05]
[1768327347983,0.010722,93317.0,93301.0,0.010724]
[1768327348371,0.09902207,93321.0,93293.0,0.09198591]
[1768327348572,0.010722,93319.0,93305.0,0.010723]
[1768327349070,0.010722,93319.0,93302.0,0.010724]
[1768327349268,0.010722,93319.0,93293.0,0.09198591]
[1768327349269,0.09902207,93321.0,93293.0,0.09198591]
[1768327349472,0.09902207,93317.0,93301.0,0.010724]
[1768327349778,0.010723,93306.0,93287.0,0.00013783]
[1768327350074,0.09652,93305.0,93287.0,0.01086383]
[1768327350281,0.010721,93325.0,93287.0,0.00029857]
[1768327350580,0.48244,93324.0,93287.0,0.01102457]
[1768327351080,1.017,93323.0,93295.0,0.010725]
[1768327351380,0.010721,93323.0,93301.0,0.09198591]
[1768327351578,0.09652,93322.0,93308.0,0.10270891]
[1768327351778,0.01072,93333.0,93313.0,0.010723]
[1768327351979,0.09652,93332.0,93317.0,0.010722]
[1768327352177,0.09652,93331.0,93317.0,0.10270791]
[1768327352383,0.00535601,93353.0,93317.0,0.10270791]
[1768327352384,0.09652,93330.0,93317.0,0.10270791]
[1768327352684,0.09652,93330.0,93317.0,0.09198591]
[1768327352982,0.09652,93330.0,93317.0,0.08798591]
[1768327353973,0.09652,93330.0,93317.0,0.09870791]
[1768327354185,0.09652,93330.0,93319.0,0.010722]
[1768327354487,0.09652,93330.0,93320.0,0.010722]
[1768327355185,0.09652,93330.0,93323.0,0.010721]
[1768327355382,0.09652,93330.0,93320.0,0.010722]
[1768327356183,0.09652,93330.0,93322.0,0.010721]
[1768327356683,0.01072,93338.0,93322.0,0.010721]
[1768327356896,0.01072,93336.0,93322.0,0.09793148]
[1768327357083,0.09652,93335.0,93322.0,0.09793148]
[1768327357283,0.09652,93335.0,93322.0,0.10865248]
[1768327358583,0.09652,93335.0,93322.0,0.010721]
[1768327359287,0.00354195,93344.0,93321.0,0.09793148]
[1768327359486,0.01072,93340.0,93326.0,0.010721]
[1768327359688,0.01072,93336.0,93317.0,0.09793148]
[1768327360185,0.01072,93335.0,93319.0,0.010722]
[1768327360391,0.10002844,93339.0,93314.0,0.00016074]
[1768327360392,0.01072,93333.0,93316.0,0.010722]
[1768327360587,0.01072,93333.0,93313.0,0.09793148]
[1768327360787,0.10002844,93339.0,93320.0,0.010722]
[1768327361391,0.09652,93339.0,93322.0,0.09793148]
[1768327361593,0.09652,93339.0,93327.0,0.010721]
[1768327362087,0.10724,93339.0,93323.0,0.010721]
[1768327362483,0.00535601,93353.0,93328.0,0.09793148]
[1768327362792,1e-08,93353.0,93347.0,0.010719]
[1768327363090,1e-08,93353.0,93344.0,0.09793148]
[1768327363091,1e-08,93353.0,93348.0,0.010718]
[1768327363291,0.09652,93357.0,93344.0,0.09793148]
[1768327363488,0.00535487,93373.0,93347.0,0.09793148]
[1768327363689,0.107237,93366.0,93351.0,0.09793148]
[1768327363879,0.010717,93364.0,93351.0,0.09793148]
[1768327364082,0.010717,93365.0,93351.0,0.09793148]
[1768327364485,0.09652,93366.0,93351.0,0.09793148]
[1768327364688,1.59652,93366.0,93351.0,0.09793148]
[1768327364991,0.09652,93366.0,93355.0,0.010718]
[1768327365188,0.09652,93366.0,93349.0,0.00016074]
[1768327365189,8.7e-07,93373.0,93354.0,0.09793148]
[1768327365489,0.09652,93383.0,93368.0,0.09793148]
[1768327365688,0.09652,93383.0,93368.0,0.10864748]
[1768327365886,0.09652,93383.0,93368.0,0.09793148]
[1768327366388,0.010715,93382.0,93368.0,0.09793148]
[1768327366981,0.010715,93379.0,93368.0,0.09793148]
[1768327367183,0.09652,93383.0,93361.0,0.09793148]
[1768327367382,0.010715,93379.0,93361.0,0.09793148]
[1768327367589,0.010715,93379.0,93364.0,0.010717]
[1768327367790,0.010715,93381.0,93366.0,0.09793148]
[1768327368091,0.010715,93377.0,93366.0,0.09793148]
[1768327368392,0.09652,93382.0,93366.0,0.09493148]
[1768327368782,0.010715,93379.0,93366.0,0.09493148]
[1768327369381,0.09652,93382.0,93372.0,0.010716]
[1768327369593,0.09652,93391.0,93369.0,0.09028732]
[1768327369886,0.09652,93391.0,93377.0,0.010715]
[1768327370085,1.5,93392.0,93369.0,0.09028732]
[1768327370086,1.5,93392.0,93379.0,0.010715]
[1768327370286,0.09652,93391.0,93383.0,0.09793148]
[1768327370688,0.010712,93405.0,93383.0,0.09793148]
[1768327370888,0.09652,93404.0,93387.0,0.10864548]
[1768327371084,0.09652,93404.0,93379.0,0.09028732]
[1768327371085,1.5,93403.0,93382.0,0.010715]
[1768327371290,0.010713,93399.0,93383.0,0.09793148]
[1768327371490,0.010713,93399.0,93386.0,0.00016064]
[1768327371900,1.5,93403.0,93386.0,0.00016064]
[1768327372086,0.010715,93383.0,93367.0,0.09793148]
[1768327372287,0.00175564,93394.0,93367.0,0.09793148]
[1768327372288,0.010715,93379.0,93367.0,0.09793148]
[1768327372497,0.09648,93390.0,93365.0,0.010716]
[1768327372685,0.010715,93381.0,93364.0,0.010717]
[1768327372880,0.010714,93384.0,93364.0,0.05]
[1768327373097,0.010714,93384.0,93365.0,0.010717]
[1768327373292,0.010714,93384.0,93367.0,0.010716]
[1768327374997,0.010714,93387.0,93369.0,0.010716]
[1768327375495,0.010714,93385.0,93369.0,0.010716]
[1768327376001,0.010714,93385.0,93365.0,0.09264748]
[1768327376192,0.010714,93385.0,93366.0,0.010716]
[1768327376494,0.010714,93385.0,93365.0,0.09264748]
[1768327376704,0.010714,93385.0,93365.0,0.11264748]
[1768327376998,0.09427216,93389.0,93365.0,0.11264748]
[1768327377194,0.09427216,93389.0,93365.0,0.09264748]
[1768327377396,0.09427216,93389.0,93361.0,0.09648]
[1768327377591,0.10498616,93387.0,93351.0,0.09028732]
[1768327377804,0.010716,93373.0,93356.0,0.010718]
[1768327378193,0.010715,93377.0,93357.0,0.09793148]
[1768327378697,0.09648,93379.0,93364.0,0.010717]
[1768327378892,0.010715,93376.0,93361.0,0.010717]
[1768327379097,0.010716,93374.0,93360.0,0.010717]
[1768327379312,0.010715,93378.0,93362.0,0.010717]
[1768327380303,0.010716,93371.0,93358.0,0.09793148]
[1768327380490,0.09427216,93378.0,93352.0,0.09648]
[1768327380688,0.09427216,93378.0,93353.0,0.010718]
[1768327380903,0.09648,93379.0,93345.0,0.09648]
[1768327380904,0.010718,93355.0,93345.0,0.09648]
[1768327381094,0.010717,93358.0,93343.0,0.09793148]
[1768327381601,0.010717,93362.0,93343.0,0.09793148]
[1768327382106,0.010717,93360.0,93344.0,0.010719]
[1768327382703,0.010717,93363.0,93347.0,0.010719]
[1768327383398,0.09648,93364.0,93347.0,0.010719]
[1768327383704,0.010717,93361.0,93347.0,0.005719]
[1768327384996,0.010717,93361.0,93346.0,0.010719]
[1768327385202,0.09819329,93363.0,93342.0,0.010719]
[1768327386399,0.010717,93359.0,93344.0,0.010719]
[1768327386594,0.09819329,93363.0,93339.0,0.09944005]
[1768327386799,0.09648,93364.0,93342.0,0.09944005]
[1768327387607,0.010717,93361.0,93344.0,0.010719]
[1768327387808,0.010717,93361.0,93346.0,0.010719]
[1768327388612,0.09648,93364.0,93342.0,0.09944005]
[1768327388808,0.15728157,93384.0,93357.0,0.09944005]
[1768327389015,0.010716,93371.0,93357.0,0.09944005]
[1768327389215,0.010716,93369.0,93357.0,0.09944005]
[1768327389416,0.010716,93372.0,93357.0,0.09944005]
[1768327389708,0.010716,93370.0,93357.0,0.09944005]
[1768327389912,0.010716,93368.0,93357.0,0.09944005]
[1768327390102,0.010716,93367.0,93357.0,0.09944005]
[1768327390308,0.010717,93365.0,93350.0,0.19608059]
[1768327390504,0.19428233,93365.0,93323.0,0.1203]
[1768327390707,0.19428233,93352.0,93323.0,0.1203]
[1768327390909,0.107198,93351.0,93333.0,1.6e-07]
[1768327391309,0.09648,93351.0,93333.0,1.6e-07]
[1768327391612,0.09648,93351.0,93334.0,0.01072]
[1768327391613,0.010718,93350.0,93334.0,0.01072]
[1768327392005,0.09648,93357.0,93345.0,0.010719]
[1768327392204,0.09648,93356.0,93345.0,0.010719]
[1768327392614,0.09648,93356.0,93344.0,0.09944005]
[1768327392805,0.107197,93364.0,93348.0,0.09944005]
[1768327393111,0.010716,93370.0,93351.0,0.09664054]
[1768327393314,0.09648,93369.0,93353.0,0.09944005]
[1768327393500,0.09648,93369.0,93347.0,0.11015905]
[1768327393706,0.010718,93355.0,93341.0,0.010719]
[1768327393907,0.19507292,93367.0,93343.0,0.010719]
[1768327394105,0.010717,93358.0,93343.0,0.010719]
[1768327394314,0.010717,93358.0,93331.0,0.01072]
[1768327394315,0.09819329,93357.0,93335.0,0.01072]
[1768327394514,0.09819329,93357.0,93335.0,0.1672]
[1768327394715,0.010719,93346.0,93330.0,0.11016105]
[1768327394903,0.010719,93346.0,93332.0,0.01072]
[1768327395100,0.010718,93349.0,93334.0,0.01072]
[1768327395606,0.010719,93347.0,93331.0,0.01072]
[1768327395918,0.14337605,93350.0,93327.0,0.010721]
[1768327396120,0.010719,93341.0,93327.0,0.05]
[1768327396410,0.010719,93342.0,93326.0,0.09648]
[1768327396801,0.18947309,93347.0,93326.0,0.107201]
[1768327397006,0.010719,93340.0,93326.0,0.107201]
[1768327397206,0.010719,93343.0,93326.0,0.107201]
[1768327397613,0.010719,93343.0,93326.0,0.010721]
[1768327398222,0.010719,93341.0,93326.0,0.010721]
[1768327398716,0.00536413,93341.0,93326.0,0.010721]
[1768327399303,0.14337605,93340.0,93319.0,0.09648]
[1768327399507,0.10371209,93345.0,93319.0,0.15648]
[1768327399812,0.010719,93342.0,93319.0,0.15648]
[1768327400013,0.010719,93342.0,93319.0,0.14248]
[1768327400410,0.01072,93332.0,93319.0,0.08248]
[1768327400917,0.01072,93335.0,93319.0,0.093202]
[1768327401411,0.010721,93331.0,93319.0,0.08248]
[1768327401805,0.010721,93330.0,93319.0,0.08248]
[1768327402012,0.010721,93328.0,93316.0,0.09279221]
[1768327402317,0.010721,93328.0,93316.0,0.11279221]
[1768327402518,0.33198337,93340.0,93316.0,0.12351421]
[1768327402720,0.010721,93329.0,93316.0,0.11279221]
[1768327402913,0.09648,93336.0,93316.0,0.11279221]
[1768327403117,0.09299309,93328.0,93306.0,0.09279221]
[1768327403417,0.010722,93321.0,93305.0,0.10351521]
[1768327403608,0.010722,93321.0,93305.0,0.11279221]
[1768327403817,0.010722,93319.0,93305.0,0.11279221]
[1768327404316,0.010722,93314.0,93298.0,0.09279221]
[1768327404522,0.010722,93317.0,93298.0,0.09279221]
[1768327404707,0.010722,93317.0,93299.0,0.19140135]
[1768327405016,0.00016073,93317.0,93303.0,0.010724]
[1768327405427,0.00016073,93317.0,93301.0,0.09279221]
[1768327405428,0.00016073,93317.0,93302.0,0.010724]
[1768327406514,0.00016073,93317.0,93297.0,0.010724]
[1768327406515,0.010722,93315.0,93297.0,0.010724]
[1768327406722,0.010722,93315.0,93299.0,0.010724]
[1768327407116,0.09299309,93316.0,93299.0,0.010724]
[1768327407319,0.10371509,93316.0,93293.0,0.09279221]
[1768327407518,0.10371509,93316.0,93298.0,0.010724]
[1768327408127,0.010722,93314.0,93298.0,0.010724]
[1768327408326,0.09652,93313.0,93298.0,0.010724]
[1768327408624,0.08596474,93313.0,93300.0,0.010724]
[1768327409409,0.08596474,93313.0,93302.0,0.010724]
[1768327409608,0.00016073,93317.0,93304.0,0.010723]
[1768327409823,0.09652,93325.0,93311.0,0.10351521]
[1768327410521,0.010722,93322.0,93305.0,0.10351521]
[1768327410726,0.09652,93325.0,93302.0,0.010724]
[1768327410922,0.010722,93319.0,93302.0,0.010724]
[1768327411228,0.09652,93325.0,93300.0,0.09279221]
[1768327411425,0.18860732,93324.0,93301.0,0.010724]
[1768327411928,0.010722,93314.0,93299.0,0.010724]
[1768327412114,0.010722,93317.0,93301.0,0.010724]
[1768327412624,0.010723,93306.0,93292.0,0.010725]
[1768327412919,0.107243,93312.0,93296.0,0.010724]
[1768327413316,0.18860732,93310.0,93287.0,0.00013783]
[1768327413516,0.14337605,93300.0,93287.0,0.02013783]
[1768327413722,0.010724,93302.0,93287.0,0.00013783]
[1768327414124,0.18860732,93304.0,93287.0,0.00013783]
[1768327414328,0.010724,93303.0,93287.0,0.01086283]
[1768327414624,0.010724,93300.0,93287.0,0.00013783]
[1768327414925,0.09299309,93304.0,93287.0,0.00013783]
[1768327415223,0.09652,93312.0,93291.0,0.09539719]
[1768327415421,0.09652,93312.0,93300.0,0.010724]
[1768327415929,0.09652,93311.0,93295.0,0.09539719]
[1768327416225,0.09652,93311.0,93302.0,0.010724]
[1768327416725,0.09652,93317.0,93302.0,0.010724]
[1768327416918,0.00016073,93316.0,93302.0,0.010724]
[1768327417420,0.00016073,93316.0,93304.0,0.010724]
[1768327417627,7.3e-07,93316.0,93302.0,0.18907806]
[1768327417821,0.01185364,93348.0,93302.0,0.18907806]
[1768327417822,0.09652,93338.0,93312.0,0.09368087]
[1768327418020,0.09652,93339.0,93323.0,0.010721]
[1768327418621,0.01072,93338.0,93323.0,0.010721]
[1768327418929,0.01072,93334.0,93317.0,0.010722]
[1768327419127,0.01072,93334.0,93321.0,0.00016073]
[1768327419427,0.01072,93337.0,93321.0,0.00016073]
[1768327420229,0.01072,93337.0,93321.0,0.01088273]
[1768327420434,0.13365381,93389.0,93321.0,0.01088273]
[1768327420435,0.18912362,93352.0,93329.0,0.010721]
[1768327420631,0.09652,93347.0,93330.0,0.09539719]
[1768327420941,0.010719,93345.0,93330.0,0.09539719]
[1768327421325,0.09652,93347.0,93330.0,0.09539719]
[1768327421524,0.20167484,93360.0,93330.0,0.09539719]
[1768327421525,0.010717,93360.0,93341.0,0.010719]
[1768327421728,0.09652,93364.0,93339.0,0.09539719]
[1768327421935,0.09652,93364.0,93330.0,0.14337605]
[1768327421936,0.010719,93348.0,93322.0,0.09539719]
[1768327422132,0.09578805,93347.0,93322.0,0.15539719]
[1768327422440,0.01072,93332.0,93321.0,0.00016073]
[1768327422829,0.010721,93329.0,93321.0,0.00016073]
[1768327423026,0.010719,93345.0,93307.0,0.19191719]
[1768327423027,0.14337605,93331.0,93307.0,0.19191719]
[1768327423233,0.2391641,93331.0,93307.0,0.060723]
[1768327423538,0.010721,93326.0,93307.0,0.060723]
[1768327423727,0.010721,93326.0,93309.0,0.010723]
[1768327423928,0.010721,93326.0,93309.0,0.070723]
[1768327424934,0.01072,93333.0,93309.0,0.15539719]
[1768327425142,0.010721,93330.0,93313.0,0.010722]
[1768327425334,0.09652,93334.0,93309.0,0.09539719]
[1768327425540,0.09652,93334.0,93310.0,0.09539719]
[1768327425841,0.09652,93334.0,93317.0,0.010722]
[1768327426043,0.09652,93334.0,93317.0,0.09539719]
[1768327426341,0.09652,93336.0,93317.0,0.09539719]
[1768327426643,0.01072,93333.0,93314.0,0.010722]
[1768327426825,0.09652,93336.0,93317.0,0.010722]
[1768327427137,0.09652,93336.0,93315.0,0.09539719]
[1768327427438,0.09652,93336.0,93315.0,0.09139719]
[1768327427636,0.14337605,93330.0,93309.0,0.010723]
[1768327427831,0.19230805,93336.0,93311.0,0.010723]
[1768327428027,0.14337605,93330.0,93311.0,0.070723]
[1768327428439,0.19230805,93336.0,93311.0,0.070723]
[1768327428637,0.010721,93329.0,93311.0,0.070723]
[1768327428834,0.010722,93321.0,93311.0,0.06]
[1768327429137,0.010721,93329.0,93311.0,0.06]
[1768327429443,0.010721,93329.0,93312.0,0.010723]
[1768327429648,0.010721,93329.0,93312.0,0.06]
[1768327430346,0.010721,93327.0,93312.0,0.06]
[1768327430645,0.010721,93327.0,93313.0,0.09539719]
[1768327430834,0.010721,93327.0,93313.0,0.15539719]
[1768327431438,0.09652,93336.0,93314.0,0.09539719]
[1768327431642,0.2391641,93350.0,93328.0,0.010721]
[1768327431847,0.09652,93349.0,93336.0,0.09539719]
[1768327432142,0.010718,93351.0,93336.0,0.09539719]
[1768327432346,0.010718,93349.0,93336.0,0.09539719]
[1768327434049,0.010718,93352.0,93336.0,0.10611719]
[1768327434245,0.010718,93350.0,93336.0,0.09539719]
[1768327434441,0.010718,93350.0,93335.0,0.01072]
[1768327434947,0.010718,93350.0,93331.0,0.17307806]
[1768327435448,0.010718,93350.0,93335.0,0.01072]
[1768327436650,0.010719,93348.0,93335.0,0.01072]
[1768327436850,0.010718,93351.0,93335.0,0.01072]
[1768327437052,0.010718,93351.0,93337.0,0.01072]
[1768327437351,0.010718,93351.0,93334.0,0.01072]
[1768327437653,0.010718,93351.0,93336.0,0.01072]
[1768327438152,0.010718,93349.0,93333.0,0.01072]
[1768327438848,0.010718,93349.0,93335.0,0.01072]
[1768327439455,0.00535601,93353.0,93332.0,0.09539719]
[1768327439644,0.00535601,93353.0,93337.0,0.09539719]
[1768327439857,0.00535601,93353.0,93341.0,0.010719]
[1768327440352,0.010718,93351.0,93338.0,0.01072]
[1768327440544,0.010718,93351.0,93333.0,0.18907806]
[1768327440744,0.00535601,93353.0,93333.0,0.06]
[1768327440952,0.00535601,93353.0,93328.0,0.20263819]
[1768327440953,0.14337605,93350.0,93328.0,0.20263819]
[1768327441149,0.09578805,93348.0,93328.0,0.15652]
[1768327441458,0.010719,93345.0,93331.0,0.01072]
[1768327442741,0.010719,93345.0,93329.0,0.09539719]
[1768327442945,0.010719,93345.0,93329.0,0.15539719]
[1768327443546,0.00535601,93353.0,93332.0,0.09368087]
[1768327443761,0.010719,93346.0,93334.0,0.09539719]
[1768327443952,0.010719,93346.0,93331.0,0.01072]
[1768327444261,0.010719,93346.0,93331.0,0.03072]
[1768327444559,0.19984262,93346.0,93328.0,0.09652]
[1768327444854,0.01072,93337.0,93328.0,0.09652]
[1768327445062,0.01072,93340.0,93325.0,0.010721]
[1768327445262,0.01072,93340.0,93325.0,0.070721]
[1768327445759,0.01072,93340.0,93327.0,0.010721]
[1768327445959,0.010719,93343.0,93327.0,0.05]
[1768327446355,0.09652,93346.0,93327.0,0.05]
[1768327446552,0.00535601,93353.0,93327.0,0.05]
[1768327446755,0.13481745,93420.0,93343.0,0.2867521]
[1768327446976,0.0138875,93440.0,93411.0,0.010711]
[1768327446977,0.09977435,93432.0,93411.0,0.010711]
[1768327447275,0.44061226,93436.0,93423.0,0.13155401]
[1768327447464,0.00016064,93431.0,93423.0,0.06]
[1768327447776,0.0138875,93440.0,93423.0,0.06]
[1768327447978,0.09652,93458.0,93430.0,0.14337605]
[1768327448165,0.107226,93458.0,93430.0,0.14337605]
[1768327448370,0.09652,93458.0,93420.0,0.14337605]
[1768327448671,0.09652,93458.0,93425.0,0.01071]
[1768327448872,0.010706,93457.0,93427.0,0.00016055]
[1768327449269,0.09977435,93447.0,93427.0,0.00016055]
[1768327449576,0.09977435,93446.0,93427.0,0.00016055]
[1768327450368,0.09977435,93446.0,93420.0,0.1422466]
[1768327450574,0.09977435,93446.0,93420.0,0.14337605]
[1768327451371,0.09977435,93446.0,93425.0,0.01071]
[1768327451970,0.19296967,93444.0,93425.0,0.01071]
[1768327452174,0.09977435,93443.0,93425.0,0.01071]
[1768327452480,0.09977435,93443.0,93428.0,0.010709]
[1768327452681,1.5,93442.0,93428.0,0.010709]
[1768327452882,1.5,93442.0,93424.0,0.00016055]
[1768327453178,1.59977435,93442.0,93420.0,0.14337605]
[1768327453366,1.59977435,93442.0,93413.0,0.11049959]
[1768327453566,0.09977435,93442.0,93427.0,0.010709]
[1768327453873,0.09977435,93442.0,93414.0,0.09978859]
[1768327454080,0.09977435,93442.0,93415.0,0.09978859]
[1768327454282,1.5,93443.0,93431.0,0.010709]
[1768327454867,1.5,93443.0,93413.0,0.010711]
[1768327454868,0.09648,93447.0,93425.0,0.09633978]
[1768327455068,0.09977435,93451.0,93427.0,0.09978859]
[1768327455370,0.09977435,93451.0,93438.0,0.010708]
[1768327456573,0.00016055,93454.0,93431.0,0.09111869]
[1768327456974,0.00016055,93454.0,93440.0,0.010708]
[1768327457188,0.10156003,93453.0,93436.0,0.010708]
[1768327458187,0.10156003,93453.0,93428.0,0.00016055]
[1768327458491,0.10156003,93453.0,93442.0,0.010708]
[1768327459882,0.10156003,93453.0,93437.0,0.010708]
[1768327460085,0.10156003,93453.0,93410.0,0.09111869]
[1768327460086,0.09620975,93441.0,93410.0,0.09111869]
[1768327460277,0.00535028,93453.0,93424.0,0.01071]
[1768327460278,0.09620975,93439.0,93424.0,0.01071]
[1768327460476,0.00016055,93454.0,93424.0,0.01071]
[1768327460477,0.19412792,93530.0,93429.0,0.4198101]
[1768327460692,0.09620975,93505.0,93480.0,0.20990505]
[1768327460874,1.5,93509.0,93480.0,0.06]
[1768327461278,1.5,93509.0,93491.0,0.010702]
[1768327461480,0.09644,93509.0,93480.0,0.09111869]
[1768327461675,0.09644,93509.0,93490.0,0.010702]
[1768327461879,0.09644,93509.0,93493.0,0.010702]
[1768327462085,0.09644,93509.0,93496.0,0.010701]
[1768327462486,0.91812,93519.0,93490.0,0.09111869]
[1768327462487,0.09644,93512.0,93490.0,0.09111869]
[1768327462692,0.09644,93514.0,93504.0,0.010701]
[1768327462882,0.09644,93514.0,93490.0,0.09111869]
[1768327463078,0.19264975,93514.0,93483.0,0.010703]
[1768327463285,0.19264975,93514.0,93499.0,0.010701]
[1768327463686,0.19264975,93514.0,93483.0,0.10182169]
[1768327463886,0.19264975,93514.0,93499.0,0.010701]
[1768327464088,0.09620975,93513.0,93502.0,0.010701]
[1768327464288,0.09791817,93536.0,93500.0,0.09004476]
[1768327464591,0.0964,93532.0,93502.0,0.09004476]
[1768327464781,0.09791817,93530.0,93511.0,0.0107]
[1768327465085,0.09791817,93530.0,93494.0,0.09004476]
[1768327465086,0.09791817,93530.0,93509.0,0.0107]
[1768327465486,0.09791817,93530.0,93494.0,0.09004476]
[1768327465487,0.19431817,93529.0,93514.0,0.010699]
[1768327465692,0.19431817,93529.0,93510.0,0.0107]
[1768327465988,0.19431817,93529.0,93509.0,0.0107]
[1768327466189,0.09620975,93528.0,93509.0,0.0107]
[1768327467389,0.09620975,93517.0,93498.0,0.010701]
[1768327467588,0.09620975,93517.0,93490.0,0.0964]
[1768327467589,0.10690875,93517.0,93490.0,0.0964]
[1768327467794,0.10690875,93517.0,93496.0,0.010702]
[1768327468588,0.09620975,93515.0,93490.0,0.18644476]
[1768327468795,0.09636,93516.0,93498.0,0.010701]
[1768327468984,0.09636,93516.0,93497.0,0.010701]
[1768327469380,0.09636,93516.0,93499.0,0.010701]
[1768327469989,0.09636,93516.0,93482.0,0.010703]
[1768327469990,0.09620975,93513.0,93497.0,0.010701]
[1768327470294,0.09620975,93513.0,93500.0,0.010701]
[1768327470884,0.09620975,93513.0,93496.0,0.010701]
[1768327472884,0.03837807,93513.0,93507.0,0.02848603]
[1768327473284,0.03837807,93513.0,93506.0,0.02848603]
[1768327473696,0.03837807,93513.0,93505.0,0.00648603]
[1768327473895,0.09791817,93509.0,93491.0,0.05698018]
[1768327474195,0.09791817,93509.0,93492.0,0.0492457]
[1768327474395,0.09791817,93509.0,93493.0,0.0385437]
[1768327474696,0.09636,93516.0,93494.0,0.0385437]
[1768327474697,0.10861817,93508.0,93494.0,0.0385437]